bitfinex/quotes_ETHUSD_20250925
["timestamp","ask_amount","ask_price","bid_price","bid_amount"]
[1758795843301,0.7088,4049.6,4049.4,2.46948609]
[1758795843497,0.2471,4049.5,4049.4,2.46948609]
[1758795844131,0.2471,4049.5,4049.3,14.5]
[1758795844335,0.2471,4049.5,4049.4,2.46950165]
[1758795845434,0.97224552,4049.7,4049.3,21.27252215]
[1758795845768,0.7088,4049.6,4049.3,14.5]
[1758795845932,0.51054552,4049.7,4049.3,18.802]
[1758795846136,0.7088,4049.6,4049.3,4.302]
[1758795846302,0.7088,4049.5,4049.3,4.302]
[1758795846498,0.7088,4049.5,4049.3,6.77156169]
[1758795846701,0.7088,4049.5,4049.2,2.46960685]
[1758795846902,0.7088,4049.5,4049.3,2.46956264]
[1758795847398,0.51054552,4049.7,4049.6,2.46937969]
[1758795847602,0.38734552,4049.7,4049.6,2.46937969]
[1758795847921,0.38734552,4049.7,4049.4,6.76644735]
[1758795848120,0.38734552,4049.7,4049.2,3.1232]
[1758795848320,0.38734552,4049.7,4049.4,5.46950089]
[1758795848321,0.7088,4049.6,4049.4,5.46950089]
[1758795848521,0.4617,4049.6,4049.4,2.46950089]
[1758795848722,0.38734552,4049.7,4049.5,2.46944067]
[1758795848935,0.38734552,4049.7,4049.6,2.46937969]
[1758795849103,0.38734552,4049.7,4049.5,2.46942104]
[1758795849438,0.38734552,4049.7,4049.4,3.0]
[1758795849439,0.38734552,4049.7,4049.6,2.46937969]
[1758795849644,0.38734552,4049.7,4049.3,4.296]
[1758795849944,0.7088,4049.6,4049.3,6.76555636]
[1758795850149,0.2471,4049.5,4049.3,6.76555636]
[1758795850351,0.4617,4049.5,4049.1,14.5]
[1758795850549,0.2471,4049.4,4049.2,6.76361799]
[1758795850949,0.2471,4049.4,4049.2,6.76261799]
[1758795851149,0.2471,4049.4,4049.3,2.46956264]
[1758795851524,0.4617,4049.5,4049.3,2.46956264]
[1758795851723,0.692,4049.5,4049.2,4.293]
[1758795851924,0.6912,4049.5,4049.2,6.76259461]
[1758795852557,0.6912,4049.5,4049.3,2.46955896]
[1758795852733,0.6912,4049.5,4049.2,6.7626061]
[1758795852928,0.6912,4049.5,4049.2,4.293]
[1758795853319,0.6912,4049.5,4049.2,6.76260872]
[1758795853823,0.6912,4049.5,4049.2,4.293]
[1758795854124,0.6912,4049.5,4049.3,2.46956025]
[1758795854519,0.6912,4049.5,4049.2,4.293]
[1758795854759,0.6912,4049.5,4049.2,6.76261892]
[1758795855356,0.6912,4049.5,4049.2,4.293]
[1758795855853,0.2303,4049.5,4048.9,0.1232]
[1758795856057,0.6895,4049.4,4049.0,4.284]
[1758795856241,0.6895,4049.3,4048.9,21.3769941]
[1758795856448,0.6895,4049.3,4048.9,17.0929941]
[1758795856636,0.6895,4049.3,4049.0,2.46972729]
[1758795856953,0.6895,4049.3,4048.8,6.75382317]
[1758795857162,0.2303,4049.2,4048.9,2.46980379]
[1758795857362,0.2303,4049.2,4049.0,2.46974435]
[1758795857660,0.5824,4049.3,4048.9,2.46980661]
[1758795858034,0.5824,4049.3,4048.8,4.5297]
[1758795858234,0.8127,4049.3,4048.8,4.5287]
[1758795858435,0.1232,4049.3,4048.9,0.2457]
[1758795858756,0.1232,4049.3,4049.0,0.02469745]
[1758795858930,0.1232,4049.3,4049.0,2.46973846]
[1758795859130,0.1232,4049.3,4048.9,2.71549289]
[1758795860141,0.1232,4049.3,4048.9,0.2457]
[1758795860342,0.51058721,4049.3,4048.9,2.7155025]
[1758795861165,0.6895,4049.2,4048.8,4.281]
[1758795861659,0.6895,4049.2,4049.0,2.46970137]
[1758795861847,0.51058721,4049.3,4049.0,2.46970137]
[1758795862257,0.38738721,4049.3,4049.2,2.46962362]
[1758795862728,0.38738721,4049.3,4049.2,7.44731985]
[1758795862938,0.38738721,4049.3,4049.2,7.42262362]
[1758795864755,0.38738721,4049.3,4049.2,6.74562362]
[1758795865074,0.38738721,4049.3,4049.2,6.98832362]
[1758795865273,0.38738721,4049.3,4049.2,21.91962362]
[1758795866453,0.001,4049.5,4049.4,2.46950165]
[1758795867883,0.001,4049.5,4049.4,2.49419666]
[1758795868050,0.001,4049.5,4049.4,3.17119666]
[1758795868758,0.001,4049.5,4049.4,2.46950165]
[1758795869080,0.001,4049.5,4049.4,2.73989666]
[1758795870277,0.001,4049.5,4049.4,3.17119666]
[1758795870483,0.001,4049.5,4049.4,7.43819666]
[1758795870666,0.001,4049.5,4049.4,7.41350165]
[1758795873984,0.001,4049.5,4049.4,6.98220165]
[1758795874186,0.001,4049.5,4049.4,8.20550165]
[1758795876083,0.001,4049.5,4049.4,11.20550165]
[1758795877163,0.0002,4049.5,4049.4,11.20550165]
[1758795878159,0.0002,4049.5,4049.4,13.26350165]
[1758795878774,0.0002,4049.5,4049.4,13.6507756]
[1758795880860,0.0002,4049.5,4049.4,13.6447756]
[1758795881554,0.00100001,4050.0,4049.9,3.26119677]
[1758795881756,0.00100001,4050.0,4049.9,7.52019677]
[1758795881969,0.00100001,4050.0,4049.9,13.12587935]
[1758795882492,0.00100001,4050.0,4049.9,13.22587935]
[1758795884168,0.00100001,4050.0,4049.9,13.34907935]
[1758795887993,0.00100001,4050.0,4049.9,13.24907935]
[1758795890369,0.00100001,4050.0,4049.9,27.74907935]
[1758795891504,0.00100001,4050.0,4049.9,30.74907935]
[1758795892603,0.02,4050.9,4050.8,2.46864816]
[1758795892805,0.02,4050.9,4050.8,7.52933464]
[1758795893106,0.02,4050.9,4050.8,7.86094816]
[1758795893282,0.02,4050.9,4050.8,22.36094816]
[1758795893684,0.02,4050.9,4050.8,22.84320753]
[1758795894306,0.02,4050.9,4050.8,22.61010753]
[1758795895087,0.02,4050.9,4050.8,24.66510753]
[1758795896016,0.6895,4050.9,4050.8,24.66510753]
[1758795896221,0.02,4050.9,4050.8,24.66510753]
[1758795896523,0.2465,4050.9,4050.8,24.66510753]
[1758795896730,0.02,4050.9,4050.8,24.66510753]
[1758795898184,0.02,4050.9,4050.8,18.36610753]
[1758795898380,0.02,4050.9,4050.8,22.60710753]
[1758795898910,0.6895,4050.9,4050.8,22.60710753]
[1758795899116,0.6895,4050.9,4050.8,21.32884816]
[1758795900496,0.6905,4050.9,4050.8,21.32884816]
[1758795901196,0.6905,4050.9,4050.8,17.09184816]
[1758795901395,0.6905,4050.9,4050.8,21.32884816]
[1758795901929,0.6905,4050.9,4050.8,21.32584816]
[1758795902144,0.2475,4050.9,4050.8,21.32584816]
[1758795902326,0.7215,4050.9,4050.8,21.32584816]
[1758795902518,0.7207,4050.9,4050.8,21.32584816]
[1758795903404,0.7207,4050.9,4050.8,21.32384816]
[1758795904003,0.7207,4050.9,4050.8,0.1232]
[1758795904220,0.7207,4050.9,4049.8,3.6895]
[1758795904221,0.7207,4050.9,4050.4,1.321]
[1758795904437,7.785137,4050.4,4049.5,0.002]
[1758795904602,0.7785137,4050.3,4050.0,2.46912329]
[1758795904807,0.7204,4050.2,4049.5,0.002]
[1758795905008,0.7204,4050.2,4049.6,4.233]
[1758795905239,0.7204,4050.1,4049.5,2.47143227]
[1758795905559,0.7204,4050.1,4049.6,4.233]
[1758795905882,0.7204,4050.0,4049.7,2.46931871]
[1758795906057,0.7204,4049.9,4049.7,2.46931871]
[1758795906260,2.057,4050.8,4049.5,4.234]
[1758795906261,4.87581,4049.7,4049.5,4.234]
[1758795906412,0.7204,4049.6,4049.5,0.002]
[1758795907416,0.7204,4049.6,4049.5,2.47144067]
[1758795907846,0.7204,4049.6,4049.5,0.002]
[1758795908009,29.77546369,4049.6,4049.5,0.002]
[1758795908370,32.39159884,4049.6,4049.5,0.002]
[1758795908562,17.65504684,4049.6,4049.5,0.002]
[1758795908760,15.55536884,4049.6,4049.5,0.002]
[1758795909048,19.78736884,4049.6,4049.5,0.002]
[1758795909525,24.84054084,4049.6,4049.5,0.002]
[1758795910643,9.81306584,4049.6,4049.5,0.002]
[1758795910950,39.81306584,4049.6,4049.5,0.002]
[1758795911510,40.60506584,4049.6,4049.5,0.002]
[1758795912910,43.60506584,4049.6,4049.5,0.002]
[1758795913424,28.37904884,4049.6,4049.5,0.002]
[1758795913962,28.76648345,4049.6,4049.5,0.002]
[1758795914562,39.40672845,4049.6,4049.5,0.002]
[1758795914859,38.88458045,4049.6,4049.5,0.002]
[1758795915158,26.07057945,4049.6,4049.5,0.002]
[1758795915364,23.40636245,4049.6,4049.5,0.002]
[1758795915527,30.25669745,4049.6,4049.5,0.002]
[1758795916663,40.20050045,4049.6,4049.5,0.002]
[1758795916863,43.20050045,4049.6,4049.5,0.002]
[1758795918580,34.89320345,4049.6,4049.5,0.002]
[1758795918738,18.19838045,4049.6,4049.5,0.002]
[1758795918933,18.63598045,4049.6,4049.5,0.002]
[1758795919266,18.40751945,4049.6,4049.5,0.002]
[1758795919633,4.83672076,4049.6,4049.5,0.002]
[1758795919834,6.66743461,4049.6,4049.5,0.002]
[1758795920045,12.2470803,4049.6,4049.5,0.002]
[1758795920627,16.5895593,4049.6,4049.5,0.002]
[1758795921041,14.12017961,4049.6,4049.5,0.002]
[1758795921241,11.95462061,4049.6,4049.5,0.002]
[1758795921467,12.91882237,4049.6,4049.5,0.23187287]
[1758795921669,17.26791337,4049.6,4049.5,0.23187287]
[1758795922275,13.84439437,4049.6,4049.5,0.002]
[1758795922666,16.76266176,4049.6,4049.5,0.002]
[1758795922876,16.4558373,4049.6,4049.5,0.002]
[1758795923076,10.92078661,4049.6,4049.5,0.002]
[1758795923276,10.92078661,4049.6,4049.5,0.23188112]
[1758795923773,22.6350733,4049.6,4049.5,0.23188112]
[1758795923942,15.66091861,4049.6,4049.5,0.23188112]
[1758795924141,13.04365261,4049.6,4049.5,0.23188112]
[1758795924345,13.04365261,4049.6,4049.5,0.23193292]
[1758795924544,15.5130323,4049.6,4049.5,0.23193292]
[1758795924744,19.1699663,4049.6,4049.5,0.23193292]
[1758795925265,19.1699663,4049.6,4049.5,0.002]
[1758795925470,16.8419663,4049.6,4049.5,0.002]
[1758795925851,25.2747713,4049.6,4049.5,0.002]
[1758795926377,25.9542713,4049.6,4049.5,0.23209131]
[1758795926785,28.1436803,4049.6,4049.5,0.23209131]
[1758795926988,24.77180561,4049.6,4049.5,0.23209131]
[1758795927291,23.91677761,4049.6,4049.5,0.23209131]
[1758795927490,22.25825861,4049.6,4049.5,0.23209131]
[1758795927788,11.38090361,4049.6,4049.5,0.23209131]
[1758795928091,16.86185861,4049.6,4049.5,0.23209131]
[1758795928861,17.73236461,4049.6,4049.5,0.23209131]
[1758795929058,11.38010361,4049.6,4049.5,0.23209131]
[1758795929490,14.83544857,4049.6,4049.5,0.23209131]
[1758795929893,3.38739785,4049.6,4049.5,0.23209131]
[1758795930094,2.058,4049.8,4049.5,3.37913198]
[1758795930274,2.058,4049.8,4049.7,2.46931871]
[1758795930604,8.90271384,4050.7,4049.7,2.46931871]
[1758795930605,4.213,4050.3,4049.7,0.90769131]
[1758795930769,4.3442,4050.2,4049.9,2.46915483]
[1758795931093,4.3442,4050.2,4050.0,2.94249929]
[1758795931299,4.3442,4050.2,4050.1,0.23009131]
[1758795931499,4.3442,4050.2,4050.1,0.47339131]
[1758795932364,4.3442,4050.2,4050.1,0.2433]
[1758795932565,4.3442,4050.2,4049.9,2.46919534]
[1758795932798,4.3442,4050.2,4050.0,0.2433]
[1758795932970,4.3442,4050.2,4049.9,2.71249534]
[1758795933179,4.3442,4050.2,4050.0,2.46912756]
[1758795933500,4.3442,4050.2,4050.0,2.71242756]
[1758795933699,4.3442,4050.2,4050.0,0.2433]
[1758795934505,4.3442,4050.2,4050.0,2.71243113]
[1758795934999,4.3442,4050.2,4049.5,14.6252]
[1758795935000,3.0,4050.1,4049.5,14.6252]
[1758795935164,4.217,4050.0,4049.6,2.71267846]
[1758795935368,4.217,4050.0,4049.5,15.0595]
[1758795935369,4.217,4050.0,4049.7,2.46930864]
[1758795935580,4.217,4050.0,4049.8,0.2433]
[1758795935794,4.217,4050.0,4049.8,0.6776]
[1758795936006,4.217,4050.0,4049.9,0.2433]
[1758795936211,4.217,4050.0,4049.5,14.502]
[1758795936212,2.096846,4049.9,4049.5,14.502]
[1758795936403,4.217,4049.8,4049.5,16.97143559]
[1758795936807,4.217,4049.8,4049.6,0.2433]
[1758795936986,4.60435032,4049.8,4049.6,0.2433]
[1758795937521,4.60435032,4049.8,4049.7,0.23124765]
[1758795937692,4.60435032,4049.8,4049.6,0.2433]
[1758795937893,4.60435032,4049.8,4049.7,0.23124763]
[1758795938214,4.60435032,4049.8,4049.7,2.94386634]
[1758795938438,4.60435032,4049.8,4049.7,3.14691871]
[1758795938594,2.0782,4050.9,4050.4,2.46883551]
[1758795938921,2.0782,4050.9,4050.5,0.6776]
[1758795938922,0.38731214,4050.6,4050.5,0.6776]
[1758795939141,4.60231214,4050.6,4050.5,0.2433]
[1758795939821,4.60231214,4050.6,4050.5,3.146431]
[1758795939989,4.60131214,4050.6,4050.5,3.146431]
[1758795941226,4.60131214,4050.6,4050.5,0.6776]
[1758795941619,4.214,4050.6,4050.2,0.6601]
[1758795941829,4.214,4050.6,4050.2,0.43]
[1758795942129,4.6012708,4050.6,4050.3,0.2301]
[1758795942339,4.6012708,4050.6,4050.3,2.69904257]
[1758795942623,4.6012708,4050.6,4050.3,0.2301]
[1758795942821,4.6012708,4050.6,4050.3,2.69903808]
[1758795943436,4.6012708,4050.6,4050.2,2.46900523]
[1758795943732,4.6012708,4050.6,4050.1,2.69915395]
[1758795943916,9.936618,4050.5,4049.8,2.46924561]
[1758795944105,4.4537,4050.4,4049.9,2.46915118]
[1758795944302,4.4537,4050.4,4050.0,2.46913546]
[1758795944502,4.4537,4050.4,4049.9,2.69928472]
[1758795944712,4.4537,4050.4,4050.0,2.69923527]
[1758795945324,4.4537,4050.4,4050.1,2.46907245]
[1758795945499,4.4537,4050.4,4050.0,0.2301]
[1758795945500,4.4537,4050.4,4050.0,2.69921395]
[1758795945704,4.21,4050.4,4050.0,2.69921395]
[1758795945900,4.21,4050.4,4050.0,0.2301]
[1758795946105,4.21,4050.4,4050.1,0.2301]
[1758795946423,4.21,4050.4,4050.2,2.46895964]
[1758795946728,4.21,4050.4,4050.1,0.2301]
[1758795946925,4.21,4050.4,4049.6,2.46937969]
[1758795947137,4.21,4050.4,4049.8,0.2301]
[1758795947320,4.21,4050.4,4049.9,2.46914863]
[1758795947524,4.21,4050.4,4049.8,0.2301]
[1758795947728,0.7077,4050.3,4049.9,2.46918157]
[1758795947890,4.206,4050.2,4049.9,2.46918157]
[1758795948421,4.206,4050.2,4050.0,2.46913255]
[1758795948601,0.1232,4050.1,4049.9,2.46918569]
[1758795948795,4.206,4050.0,4049.9,2.46918569]
[1758795949930,4.206,4050.0,4049.5,0.002]
[1758795949931,7.03232,4049.9,4049.5,0.002]
[1758795950092,7.03232,4049.9,4049.5,2.47141873]
[1758795950093,4.3292,4049.8,4049.5,2.47141873]
[1758795950522,4.3292,4049.8,4049.5,0.002]
[1758795950725,4.5729,4049.8,4049.5,0.002]
[1758795950893,4.7932,4049.8,4049.5,0.002]
[1758795951103,0.7077,4049.7,4049.5,0.002]
[1758795951407,4.204,4049.6,4049.5,0.002]
[1758795951601,9.942175,4049.6,4049.5,0.002]
[1758795951806,24.288405,4049.6,4049.5,0.002]
[1758795952010,22.470683,4049.6,4049.5,0.002]
[1758795952607,4.204,4049.6,4049.5,0.002]
[1758795952808,2.4690814,4050.1,4049.5,0.002]
[1758795952809,0.1232,4049.8,4049.5,0.2321]
[1758795953021,4.204,4049.7,4049.6,0.43]
[1758795953242,4.204,4049.7,4049.5,0.002]
[1758795953405,0.7077,4049.6,4049.5,0.002]
[1758795953605,0.7069,4049.6,4049.5,0.002]
[1758795953807,27.701633,4049.6,4049.5,0.002]
[1758795954006,26.46691415,4049.6,4049.5,0.002]
[1758795954301,28.93629384,4049.6,4049.5,0.002]
[1758795954504,0.38737757,4049.6,4049.5,0.002]
[1758795954757,4.59237757,4049.6,4049.5,0.002]
[1758795956112,20.63434357,4049.6,4049.5,0.002]
[1758795956333,34.23364226,4049.6,4049.5,0.002]
[1758795956534,26.72497126,4049.6,4049.5,0.002]
[1758795956922,29.11625741,4049.6,4049.5,0.002]
[1758795957549,21.91302741,4049.6,4049.5,0.002]
[1758795958012,24.91302741,4049.6,4049.5,0.002]
[1758795958454,35.04426841,4049.6,4049.5,0.002]
[1758795958693,33.71650741,4049.6,4049.5,0.002]
[1758795959453,34.25208841,4049.6,4049.5,0.002]
[1758795960307,31.07581841,4049.6,4049.5,0.002]
[1758795960465,32.19739941,4049.6,4049.5,0.002]
[1758795961373,37.62191141,4049.6,4049.5,0.002]
[1758795961705,35.90447541,4049.6,4049.5,0.002]
[1758795962409,32.56241341,4049.6,4049.5,0.002]
[1758795962610,36.60206587,4049.6,4049.5,0.002]
[1758795963281,33.60206587,4049.6,4049.5,0.002]
[1758795963473,44.74366187,4049.6,4049.5,0.002]
[1758795964304,42.94286187,4049.6,4049.5,0.002]
[1758795964490,43.8780483,4049.6,4049.5,0.002]
[1758795965419,12.6080183,4049.6,4049.5,0.002]
[1758795965707,18.8640183,4049.6,4049.5,0.002]
[1758795966038,48.8640183,4049.6,4049.5,0.002]
[1758795966180,2.46968462,4049.1,4049.0,0.002]
[1758795966388,43.70633708,4049.1,4049.0,0.002]
[1758795966785,44.40893708,4049.1,4049.0,0.002]
[1758795966988,44.79645985,4049.1,4049.0,0.002]
[1758795967299,44.92216008,4049.1,4049.0,0.002]
[1758795967498,47.31344623,4049.1,4049.0,0.002]
[1758795967699,48.10544623,4049.1,4049.0,0.002]
[1758795968500,6.26180661,4048.9,4048.8,1e-08]
[1758795968673,40.45880661,4048.9,4048.8,1e-08]
[1758795968876,41.16140661,4048.9,4048.8,1e-08]
[1758795969077,43.55109278,4048.9,4048.8,1e-08]
[1758795971033,2.46992861,4048.7,4048.6,0.002]
[1758795971229,46.55558107,4048.7,4048.6,0.002]
[1758795971537,46.55558107,4048.7,4047.1,0.2514]
[1758795971538,2.47023368,4048.2,4047.1,0.2514]
[1758795971700,44.49892519,4048.2,4047.1,0.2514]
[1758795972034,45.55971083,4048.2,4047.2,0.437]
[1758795972211,45.55971083,4048.2,4047.4,0.2314]
[1758795973250,45.55971083,4048.2,4048.1,1e-08]
[1758795973595,15.55971083,4048.2,4048.1,1e-08]
[1758795973902,45.55971083,4048.2,4048.1,1e-08]
[1758795974415,46.35171083,4048.2,4048.1,1e-08]
[1758795978252,6.26235573,4048.0,4047.1,0.02]
[1758795978432,40.45235573,4048.0,4047.1,0.02]
[1758795978626,41.12555573,4048.0,4047.2,0.2314]
[1758795978947,41.12475573,4048.0,4047.2,0.2314]
[1758795982268,40.45155573,4048.0,4047.2,0.2314]
[1758795982472,43.51604188,4048.0,4047.3,0.2334]
[1758795984731,43.51604188,4048.0,4047.3,0.002]
[1758795984940,43.90366788,4048.0,4047.4,0.2314]
[1758795987845,43.90366788,4048.0,4047.3,0.002]
[1758795987846,2.47072194,4047.4,4047.3,0.002]
[1758795988044,11.83992194,4047.4,4047.3,0.002]
[1758795988363,38.87745655,4047.4,4047.3,0.2334]
[1758795988680,42.40144819,4047.4,4047.3,0.2334]
[1758795988976,44.09819319,4047.4,4047.3,0.2334]
[1758795989956,46.94288619,4047.4,4047.3,0.2334]
[1758795990577,47.44860774,4047.4,4047.3,0.2334]
[1758795990767,45.54880574,4047.4,4047.3,0.2334]
[1758795991090,45.1538061,4047.4,4047.3,0.2334]
[1758795991639,45.1538061,4047.4,4047.3,0.002]
[1758795992040,48.7765821,4047.4,4047.3,0.002]
[1758795992279,44.7606531,4047.4,4047.3,0.002]
[1758795992483,44.2238461,4047.4,4047.3,0.002]
[1758795992971,48.7765821,4047.4,4047.3,0.002]
[1758795993957,48.87529996,4047.4,4047.3,0.002]
[1758795994157,49.16424696,4047.4,4047.3,0.002]
[1758795994382,48.87529996,4047.4,4047.3,0.002]
[1758795994574,48.59561396,4047.4,4047.3,0.002]
[1758795995187,48.62133296,4047.4,4047.3,0.002]
[1758795995491,48.85403296,4047.4,4047.3,0.002]
[1758795996293,49.39694696,4047.4,4047.3,0.002]
[1758795996457,45.3572945,4047.4,4047.3,0.002]
[1758795996792,45.1245945,4047.4,4047.3,0.2334]
[1758795996979,40.8215635,4047.4,4047.3,0.2334]
[1758795997181,45.1245945,4047.4,4047.3,0.002]
[1758795997687,45.7977945,4047.4,4047.3,0.002]
[1758795998054,2.47084404,4047.2,4047.1,1e-08]
[1758795998258,3.2630272,4046.9,4046.8,0.002]
[1758795998497,40.4490272,4046.9,4046.8,0.002]
[1758795998790,41.1222272,4046.9,4046.8,0.002]
[1758795998993,41.50994394,4046.9,4046.8,0.002]
[1758795999166,43.90123009,4046.9,4046.8,0.002]
[1758796001393,43.51351335,4046.9,4046.8,0.002]
[1758796002682,43.07301335,4046.9,4046.8,0.002]
[1758796002888,42.84031335,4046.9,4046.8,0.002]
[1758796003999,43.52321335,4046.9,4046.8,0.002]
[1758796004372,43.91014587,4046.9,4046.8,0.002]
[1758796007303,13.91014587,4046.9,4046.8,0.002]
[1758796007505,43.91014587,4046.9,4046.8,0.002]
[1758796009699,43.91114587,4046.9,4046.8,0.002]
[1758796010383,43.22824587,4046.9,4046.8,0.002]
[1758796010888,42.84051335,4046.9,4046.8,0.002]
[1758796011091,3.26345469,4046.2,4046.1,0.02]
[1758796011423,47.7628932,4046.2,4046.1,0.02]
[1758796011984,48.0085932,4046.2,4046.1,0.02]
[1758796012181,48.0085932,4046.2,4045.6,0.469]
[1758796012182,2.47176014,4045.7,4045.6,0.2356]
[1758796012395,44.58485318,4045.7,4045.6,0.2356]
[1758796012617,46.97613933,4045.7,4045.6,0.2356]
[1758796014120,47.36394326,4045.7,4045.6,0.2356]
[1758796014922,2.47206565,4045.2,4044.1,0.02]
[1758796015128,11.71906565,4045.2,4044.1,0.02]
[1758796015343,39.57472165,4045.2,4044.1,0.02]
[1758796015555,42.10690847,4045.2,4045.1,0.7246]
[1758796016055,38.96916447,4045.2,4045.1,0.7246]
[1758796016214,38.28459947,4045.2,4045.1,0.7246]
[1758796016639,39.56193347,4045.2,4045.1,0.7246]
[1758796016816,41.76193347,4045.2,4045.1,0.7246]
[1758796017415,17.02676847,4045.2,4045.1,0.7246]
[1758796017617,18.97664433,4045.2,4045.1,0.7246]
[1758796017953,34.82478433,4045.2,4045.1,0.7246]
[1758796018541,34.56361033,4045.2,4045.1,0.7246]
[1758796018749,14.05678433,4045.2,4045.1,0.7246]
[1758796019059,38.11244933,4045.2,4045.1,0.7246]
[1758796019712,14.05678433,4045.2,4045.1,0.7246]
[1758796020055,27.10431633,4045.2,4045.1,0.7246]
[1758796020836,35.38370833,4045.2,4045.1,0.7246]
[1758796021178,33.39562751,4045.2,4045.1,0.7246]
[1758796021465,32.05702551,4045.2,4045.1,0.7246]
[1758796021849,35.60231851,4045.2,4045.1,0.7246]
[1758796022030,33.40231851,4045.2,4045.1,0.7246]
[1758796022431,28.29787351,4045.2,4045.1,0.7246]
[1758796022633,24.36957265,4045.2,4045.1,0.7246]
[1758796022929,27.93826165,4045.2,4045.1,0.7246]
[1758796023135,15.56967165,4045.2,4045.1,0.7246]
[1758796023859,11.71906565,4045.2,4045.1,0.7246]
[1758796024363,26.26773465,4045.2,4045.1,0.7246]
[1758796024933,37.46444965,4045.2,4045.1,0.7246]
[1758796025275,27.63047265,4045.2,4045.1,0.7246]
[1758796025967,30.29818465,4045.2,4045.1,0.7246]
[1758796026777,29.82067965,4045.2,4045.1,0.7246]
[1758796026981,31.89762165,4045.2,4045.1,0.7246]
[1758796028060,31.89762165,4045.2,4045.1,0.258]
[1758796028061,34.77671365,4045.2,4045.1,0.258]
[1758796028256,34.65604365,4045.2,4045.1,0.258]
[1758796028798,34.65604365,4045.2,4045.1,0.7116]
[1758796029381,34.77830465,4045.2,4045.1,0.7116]
[1758796029893,34.77750465,4045.2,4045.1,0.7116]
[1758796030270,34.78002165,4045.2,4045.1,0.7116]
[1758796030466,26.94001065,4045.2,4045.1,0.7116]
[1758796030669,24.11204165,4045.2,4045.1,0.7116]
[1758796031085,22.96952665,4045.2,4045.1,0.7116]
[1758796031269,24.58191865,4045.2,4045.1,0.7116]
[1758796032167,22.85249565,4045.2,4045.1,0.7116]
[1758796032358,26.71707365,4045.2,4045.1,0.7116]
[1758796032563,21.56550465,4045.2,4045.1,0.7116]
[1758796033256,25.10195865,4045.2,4045.1,0.7116]
[1758796034273,26.14780165,4045.2,4045.1,0.7116]
[1758796034474,7.666503,4045.2,4045.1,0.7056]
[1758796034713,9.392627,4045.2,4045.1,0.7056]
[1758796036903,9.7804256,4045.2,4045.1,0.7056]
[1758796037088,27.3898996,4045.2,4045.1,0.7056]
[1758796037288,31.3608176,4045.2,4045.1,0.7056]
[1758796037499,22.8044286,4045.2,4045.1,0.7056]
[1758796037887,15.3967546,4045.2,4045.1,0.7056]
[1758796038085,15.8397546,4045.2,4045.1,0.7056]
[1758796039180,11.5064866,4045.2,4045.1,0.7056]
[1758796039382,7.5737986,4045.2,4045.1,0.7056]
[1758796039824,19.9488336,4045.2,4045.1,0.022]
[1758796039996,25.28658261,4045.2,4045.1,0.022]
[1758796040324,37.26194561,4045.2,4045.1,0.022]
[1758796040624,36.24985161,4045.2,4045.1,0.022]
[1758796041243,37.78951461,4045.2,4045.1,0.022]
[1758796041548,37.16130101,4045.2,4045.1,0.022]
[1758796042350,38.52875501,4045.2,4045.1,0.022]
[1758796043270,39.89020501,4045.2,4045.1,0.022]
[1758796044215,42.09360601,4045.2,4045.1,0.022]
[1758796044540,39.77704475,4045.2,4045.1,0.022]
[1758796044745,39.48185175,4045.2,4045.1,0.022]
[1758796045548,40.13095175,4045.2,4045.1,0.022]
[1758796045739,37.88936975,4045.2,4045.1,0.022]
[1758796046530,40.08936975,4045.2,4045.1,0.022]
[1758796046745,39.08040075,4045.2,4045.1,0.022]
[1758796047829,28.88242075,4045.2,4045.1,0.022]
[1758796048133,35.12842075,4045.2,4045.1,0.022]
[1758796048662,40.29569875,4045.2,4045.1,0.022]
[1758796048864,40.52769875,4045.2,4045.1,0.022]
[1758796049225,40.96039875,4045.2,4045.1,0.022]
[1758796049428,44.97160475,4045.2,4045.1,0.022]
[1758796052432,44.58374901,4045.2,4045.1,0.022]
[1758796053457,49.90355728,4045.2,4045.1,0.022]
[1758796054842,50.39613786,4045.2,4045.1,0.022]
[1758796055261,50.39533786,4045.2,4045.1,0.022]
[1758796056650,49.51451003,4045.2,4045.1,0.022]
[1758796057563,49.96521003,4045.2,4045.1,0.022]
[1758796057768,36.03875766,4045.2,4045.1,0.022]
[1758796057964,13.2293483,4045.2,4045.1,0.7056]
[1758796058172,15.70141395,4045.2,4045.1,0.7056]
[1758796058369,15.25071395,4045.2,4045.1,0.7056]
[1758796058670,35.51436595,4045.2,4045.1,0.7056]
[1758796058835,35.50411295,4045.2,4045.1,0.7056]
[1758796059034,35.10636395,4045.2,4045.1,0.7056]
[1758796059261,33.70714295,4045.2,4045.1,0.7056]
[1758796059463,32.34849495,4045.2,4045.1,0.7056]
[1758796059662,32.34849495,4045.2,4045.1,0.2549]
[1758796059863,36.2339771,4045.2,4045.1,0.022]
[1758796060472,36.8986771,4045.2,4045.1,0.022]
[1758796060673,37.3513771,4045.2,4045.1,0.022]
[1758796060874,45.6138261,4045.2,4045.1,0.022]
[1758796061075,45.2259518,4045.2,4045.1,0.022]
[1758796062971,2.47237125,4044.7,4044.6,0.002]
[1758796063171,43.70747739,4044.7,4044.6,0.002]
[1758796063371,44.38267739,4044.7,4044.6,0.002]
[1758796063685,45.5625828,4044.7,4044.6,0.002]
[1758796064285,40.80258017,4044.7,4044.6,0.002]
[1758796064492,56.55606632,4044.7,4044.6,0.002]
[1758796066102,3.26461578,4044.3,4044.2,0.002]
[1758796066303,44.49972192,4044.3,4044.2,0.002]
[1758796066483,44.94922192,4044.3,4044.2,0.002]
[1758796066663,45.17492192,4044.3,4044.2,0.002]
[1758796066864,47.56460809,4044.3,4044.2,0.002]
[1758796067159,47.56460809,4044.3,4043.8,0.002]
[1758796067160,2.47286035,4043.9,4043.8,0.002]
[1758796067495,41.71786035,4043.9,4043.8,0.002]
[1758796067702,42.39306035,4043.9,4043.8,0.002]